[Event "Late-Titled-Tuesday-Blitz-September-12-2023"]
[Site "Chess.com"]
[Date "2023.09.12"]
[Round "2"]
[White "CFalcons8"]
[Black "jaskol95"]
[Result "0-1"]
[WhiteElo "2298"]
[BlackElo "2517"]
[TimeControl "180+1"]
[EndTime "14:18:10 PDT"]
[Termination "jaskol95 won on time"]

1. e4 {[%clk 0:03:00.9]} 1... c5 {[%clk 0:02:59.5]} 2. Nf3 {[%clk 0:03:00]} 2...
e6 {[%clk 0:03:00.2]} 3. d4 {[%clk 0:02:53]} 3... cxd4 {[%clk 0:03:01.1]} 4.
Nxd4 {[%clk 0:02:53.2]} 4... Nc6 {[%clk 0:03:01.8]} 5. Nc3 {[%clk 0:02:50.3]}
5... Qc7 {[%clk 0:03:01.1]} 6. a3 {[%clk 0:02:46.4]} 6... a6 {[%clk 0:03:00.9]}
7. Be3 {[%clk 0:02:45.1]} 7... b5 {[%clk 0:03:01.2]} 8. Be2 {[%clk 0:02:44.3]}
8... Bb7 {[%clk 0:03:01.2]} 9. O-O {[%clk 0:02:42.9]} 9... Nf6 {[%clk
0:03:00.1]} 10. f4 {[%clk 0:02:38.4]} 10... d6 {[%clk 0:03:00.3]} 11. Bf3 {[%clk
0:02:37.6]} 11... Be7 {[%clk 0:02:51.8]} 12. Qd2 {[%clk 0:02:35.9]} 12... O-O
{[%clk 0:02:45.4]} 13. g4 {[%clk 0:02:28.5]} 13... Nxd4 {[%clk 0:02:44.2]} 14.
Qxd4 {[%clk 0:02:23.9]} 14... e5 {[%clk 0:02:43.5]} 15. Qd2 {[%clk 0:02:22.9]}
15... Rfd8 {[%clk 0:02:34.4]} 16. g5 {[%clk 0:02:22.1]} 16... Nd7 {[%clk
0:02:31.4]} 17. f5 {[%clk 0:02:20.6]} 17... Bf8 {[%clk 0:02:30.6]} 18. Kh1
{[%clk 0:02:17.4]} 18... Nb6 {[%clk 0:02:19.9]} 19. Qg2 {[%clk 0:02:04.2]} 19...
d5 {[%clk 0:02:05.4]} 20. exd5 {[%clk 0:01:59.2]} 20... Nc4 {[%clk 0:01:57.7]}
21. Bc1 {[%clk 0:01:52.2]} 21... b4 {[%clk 0:01:57.9]} 22. axb4 {[%clk
0:01:50.9]} 22... Bxb4 {[%clk 0:01:58.8]} 23. Ne4 {[%clk 0:01:49.3]} 23... Kh8
{[%clk 0:01:44.1]} 24. c3 {[%clk 0:01:21.1]} 24... Bf8 {[%clk 0:01:41.2]} 25. b3
{[%clk 0:01:13.6]} 25... Nd6 {[%clk 0:01:38.3]} 26. Nxd6 {[%clk 0:01:08.8]}
26... Qxd6 {[%clk 0:01:36.7]} 27. c4 {[%clk 0:01:06.1]} 27... a5 {[%clk
0:01:33.8]} 28. Ba3 {[%clk 0:01:00.8]} 28... Qb6 {[%clk 0:01:33.9]} 29. Bxf8
{[%clk 0:01:00.2]} 29... Rxf8 {[%clk 0:01:34.8]} 30. Be4 {[%clk 0:00:50]} 30...
f6 {[%clk 0:01:20]} 31. g6 {[%clk 0:00:34.5]} 31... h6 {[%clk 0:01:18.8]} 32.
Rf3 {[%clk 0:00:32]} 32... Qd4 {[%clk 0:01:13.2]} 33. Re1 {[%clk 0:00:28.1]}
33... a4 {[%clk 0:00:55.8]} 34. bxa4 {[%clk 0:00:28.6]} 34... Rxa4 {[%clk
0:00:55.5]} 35. Rh3 {[%clk 0:00:28]} 35... Ra1 {[%clk 0:00:54.3]} 36. Rxa1
{[%clk 0:00:16.2]} 36... Qxa1+ {[%clk 0:00:53.9]} 37. Qg1 {[%clk 0:00:16.4]}
37... Qa2 {[%clk 0:00:44.3]} 38. Rxh6+ {[%clk 0:00:06.4]} 38... gxh6 {[%clk
0:00:45.2]} 39. g7+ {[%clk 0:00:06.4]} 39... Kg8 {[%clk 0:00:45.9]} 40. gxf8=Q+
{[%clk 0:00:07]} 40... Kxf8 {[%clk 0:00:46.7]} 41. Qc5+ {[%clk 0:00:06.9]} 41...
Kg8 {[%clk 0:00:39.9]} 42. Qb4 {[%clk 0:00:04.8]} 42... Qa1+ {[%clk 0:00:33.7]}
43. Qb1 {[%clk 0:00:03.5]} 43... Qd4 {[%clk 0:00:34.4]} 44. Qg1+ {[%clk
0:00:02.7]} 44... Kf8 {[%clk 0:00:25]} 45. Qxd4 {[%clk 0:00:02.3]} 45... exd4
{[%clk 0:00:25.9]} 46. Kg2 {[%clk 0:00:02.4]} 46... Ke7 {[%clk 0:00:26.5]} 47.
Kf2 {[%clk 0:00:03.1]} 47... Kd6 {[%clk 0:00:27.2]} 48. Ke2 {[%clk 0:00:03.8]}
48... Kc5 {[%clk 0:00:27.8]} 49. Kd3 {[%clk 0:00:04.7]} 49... Ba6 {[%clk
0:00:28]} 50. Kd2 {[%clk 0:00:04.9]} 50... Bxc4 {[%clk 0:00:28.4]} 51. Bf3
{[%clk 0:00:04.4]} 51... Bxd5 {[%clk 0:00:28.2]} 52. Bh5 {[%clk 0:00:05.1]}
52... Be4 {[%clk 0:00:27.3]} 53. Bg6 {[%clk 0:00:05.7]} 53... Kd5 {[%clk
0:00:27.6]} 54. Ke2 {[%clk 0:00:03.7]} 54... Ke5 {[%clk 0:00:28.2]} 55. Be8
{[%clk 0:00:03.3]} 55... Bxf5 {[%clk 0:00:28.1]} 56. Kf3 {[%clk 0:00:02.7]}
56... Be4+ {[%clk 0:00:27.6]} 57. Kg4 {[%clk 0:00:02.8]} 57... d3 {[%clk
0:00:26.6]} 58. Kh5 {[%clk 0:00:02.5]} 58... d2 {[%clk 0:00:25.8]} 59. Ba4
{[%clk 0:00:01.8]} 59... Bf3+ {[%clk 0:00:24.8]} 60. Kxh6 {[%clk 0:00:02.4]}
60... d1=Q {[%clk 0:00:25.4]} 61. Bxd1 {[%clk 0:00:02.4]} 61... Bxd1 {[%clk
0:00:26.3]} 62. h4 {[%clk 0:00:02.3]} 62... f5 {[%clk 0:00:27.1]} 0-1

[Event "Late-Titled-Tuesday-Blitz-September-12-2023"]
[Site "Chess.com"]
[Date "2023.09.12"]
[Round "2"]
[White "ZuraTqebuchava"]
[Black "Battever"]
[Result "1-0"]
[WhiteElo "2255"]
[BlackElo "2467"]
[TimeControl "180+1"]
[EndTime "14:18:12 PDT"]
[Termination "ZuraTqebuchava won by resignation"]

1. e4 {[%clk 0:03:00]} 1... g6 {[%clk 0:02:59.1]} 2. d4 {[%clk 0:02:58.9]} 2...
Bg7 {[%clk 0:02:58.4]} 3. Nc3 {[%clk 0:02:59.5]} 3... c6 {[%clk 0:02:58.7]} 4.
g3 {[%clk 0:02:59.3]} 4... d5 {[%clk 0:02:58.9]} 5. e5 {[%clk 0:02:53.9]} 5...
c5 {[%clk 0:02:59.3]} 6. dxc5 {[%clk 0:02:45.8]} 6... d4 {[%clk 0:02:57.3]} 7.
Ne4 {[%clk 0:02:43.1]} 7... Bxe5 {[%clk 0:02:53.4]} 8. Bg2 {[%clk 0:02:40.6]}
8... Nc6 {[%clk 0:02:53.5]} 9. Nf3 {[%clk 0:02:39.6]} 9... Bg7 {[%clk
0:02:54.1]} 10. O-O {[%clk 0:02:39.6]} 10... Nh6 {[%clk 0:02:51.2]} 11. Re1
{[%clk 0:02:33.9]} 11... O-O {[%clk 0:02:51.4]} 12. h3 {[%clk 0:02:17.3]} 12...
f5 {[%clk 0:02:51.2]} 13. Ned2 {[%clk 0:01:57.8]} 13... e5 {[%clk 0:02:51.2]}
14. Nc4 {[%clk 0:01:57.6]} 14... e4 {[%clk 0:02:51.6]} 15. Ng5 {[%clk
0:01:49.4]} 15... Qd5 {[%clk 0:02:44.1]} 16. b3 {[%clk 0:01:27.1]} 16... Qxc5
{[%clk 0:02:41.7]} 17. Ba3 {[%clk 0:01:26.5]} 17... Nb4 {[%clk 0:02:42.2]} 18.
Qd2 {[%clk 0:01:17.1]} 18... a5 {[%clk 0:02:42.3]} 19. Rad1 {[%clk 0:01:07.1]}
19... Re8 {[%clk 0:02:26]} 20. Nxa5 {[%clk 0:01:02.9]} 20... Qxa5 {[%clk
0:02:25.8]} 21. Bxb4 {[%clk 0:01:02]} 21... Qxa2 {[%clk 0:02:25.6]} 22. Ra1
{[%clk 0:00:52.3]} 22... Qxa1 {[%clk 0:02:25.2]} 23. Rxa1 {[%clk 0:00:53.2]}
23... Rxa1+ {[%clk 0:02:25.3]} 24. Kh2 {[%clk 0:00:53.8]} 24... Nf7 {[%clk
0:02:05.3]} 25. Nxf7 {[%clk 0:00:52]} 25... Kxf7 {[%clk 0:02:06.2]} 26. Bc5
{[%clk 0:00:38.9]} 26... Rd8 {[%clk 0:01:49.3]} 27. Qf4 {[%clk 0:00:38.4]} 27...
Be6 {[%clk 0:01:45.5]} 28. Bxe4 {[%clk 0:00:32.1]} 28... Rc8 {[%clk 0:01:20.4]}
29. Qd6 {[%clk 0:00:24]} 29... Bf8 {[%clk 0:01:11.4]} 30. Qxd4 {[%clk
0:00:17.9]} 30... Bxc5 {[%clk 0:01:00.1]} 31. Qxa1 {[%clk 0:00:16.6]} 31... fxe4
{[%clk 0:01:00.8]} 32. Qe5 {[%clk 0:00:14.5]} 32... Bxf2 {[%clk 0:00:46.9]} 33.
Qf4+ {[%clk 0:00:13.5]} 33... Bf5 {[%clk 0:00:47.2]} 34. Qxf2 {[%clk 0:00:05.6]}
34... e3 {[%clk 0:00:47.9]} 35. Qxe3 {[%clk 0:00:05.2]} 35... Rxc2+ {[%clk
0:00:48.8]} 36. Kg1 {[%clk 0:00:05.4]} 36... Rc7 {[%clk 0:00:33.3]} 37. g4
{[%clk 0:00:05]} 37... Re7 {[%clk 0:00:30.8]} 38. Qf3 {[%clk 0:00:04.4]} 38...
Kf6 {[%clk 0:00:27]} 39. gxf5 {[%clk 0:00:04.8]} 39... gxf5 {[%clk 0:00:27.9]}
40. Kf2 {[%clk 0:00:04.8]} 40... Re4 {[%clk 0:00:27.6]} 41. Kg3 {[%clk 0:00:05]}
41... Kg5 {[%clk 0:00:26]} 42. Qc3 {[%clk 0:00:04.9]} 42... f4+ {[%clk
0:00:24.7]} 43. Kf2 {[%clk 0:00:04.5]} 43... Re3 {[%clk 0:00:20.7]} 44. Qc5+
{[%clk 0:00:03.8]} 44... Kh4 {[%clk 0:00:19.4]} 45. Qf8 {[%clk 0:00:03.2]} 45...
Kg5 {[%clk 0:00:15.1]} 46. Qg7+ {[%clk 0:00:03.2]} 46... Kf5 {[%clk 0:00:15.8]}
47. Qxh7+ {[%clk 0:00:03.4]} 47... Ke5 {[%clk 0:00:16.5]} 48. Qxb7 {[%clk
0:00:03.5]} 48... Rxh3 {[%clk 0:00:16]} 49. Qe7+ {[%clk 0:00:03.1]} 49... Kd4
{[%clk 0:00:13.3]} 50. Qd7+ {[%clk 0:00:03.2]} 50... Kc3 {[%clk 0:00:14]} 51.
Qxh3+ {[%clk 0:00:04.1]} 51... Kb2 {[%clk 0:00:13.5]} 52. Qg4 {[%clk 0:00:05]}
1-0

[Event "Late-Titled-Tuesday-Blitz-September-12-2023"]
[Site "Chess.com"]
[Date "2023.09.12"]
[Round "2"]
[White "KNVB"]
[Black "Mikhal867"]
[Result "1-0"]
[WhiteElo "2780"]
[BlackElo "2427"]
[TimeControl "180+1"]
[EndTime "14:18:13 PDT"]
[Termination "KNVB won on time"]

1. d4 {[%clk 0:03:00.9]} 1... Nf6 {[%clk 0:02:58.7]} 2. Bf4 {[%clk 0:03:00.3]}
2... g6 {[%clk 0:02:58.3]} 3. Nc3 {[%clk 0:02:59.1]} 3... Bg7 {[%clk 0:02:58.9]}
4. e4 {[%clk 0:02:59.1]} 4... O-O {[%clk 0:02:59.5]} 5. Qd2 {[%clk 0:02:59]}
5... Re8 {[%clk 0:02:58.1]} 6. e5 {[%clk 0:02:39.7]} 6... Nh5 {[%clk 0:02:52.4]}
7. Bh6 {[%clk 0:02:09]} 7... d6 {[%clk 0:02:50.4]} 8. Bxg7 {[%clk 0:01:59.7]}
8... Nxg7 {[%clk 0:02:46.6]} 9. O-O-O {[%clk 0:01:56.2]} 9... dxe5 {[%clk
0:02:41.6]} 10. dxe5 {[%clk 0:01:57.1]} 10... Qxd2+ {[%clk 0:02:40.8]} 11. Rxd2
{[%clk 0:01:58]} 11... c6 {[%clk 0:02:38.5]} 12. f4 {[%clk 0:01:54.9]} 12... Nd7
{[%clk 0:02:18.9]} 13. Nf3 {[%clk 0:01:42.3]} 13... Nc5 {[%clk 0:02:18.5]} 14.
b4 {[%clk 0:01:22]} 14... Nce6 {[%clk 0:02:17.7]} 15. g3 {[%clk 0:01:22.5]}
15... a5 {[%clk 0:02:16.5]} 16. a3 {[%clk 0:01:22.8]} 16... axb4 {[%clk
0:02:15.5]} 17. axb4 {[%clk 0:01:23.7]} 17... Nf5 {[%clk 0:02:14.5]} 18. Kb2
{[%clk 0:01:20]} 18... Rd8 {[%clk 0:02:02.5]} 19. Bd3 {[%clk 0:01:08]} 19...
Nfd4 {[%clk 0:01:45.3]} 20. Nxd4 {[%clk 0:00:56.1]} 20... Nxd4 {[%clk
0:01:44.8]} 21. Be4 {[%clk 0:00:56.6]} 21... Bf5 {[%clk 0:01:41.6]} 22. Rhd1
{[%clk 0:00:56.3]} 22... Ne6 {[%clk 0:01:24]} 23. Bxf5 {[%clk 0:00:45.3]} 23...
gxf5 {[%clk 0:01:23.5]} 24. Rd7 {[%clk 0:00:46]} 24... b5 {[%clk 0:00:53]} 25.
Rxe7 {[%clk 0:00:44.3]} 25... Rxd1 {[%clk 0:00:51.8]} 26. Nxd1 {[%clk
0:00:45.2]} 26... Rd8 {[%clk 0:00:51.5]} 27. Ne3 {[%clk 0:00:33.2]} 27... Rd2
{[%clk 0:00:51.2]} 28. Re8+ {[%clk 0:00:19.4]} 28... Kg7 {[%clk 0:00:47.4]} 29.
Nxf5+ {[%clk 0:00:19.8]} 29... Kg6 {[%clk 0:00:47.1]} 30. Ne7+ {[%clk 0:00:06]}
30... Kh6 {[%clk 0:00:38.9]} 31. Rg8 {[%clk 0:00:04.7]} 31... Ng7 {[%clk
0:00:20.5]} 32. h3 {[%clk 0:00:04.5]} 32... Rd7 {[%clk 0:00:18.1]} 33. Nxc6
{[%clk 0:00:03.4]} 33... Nf5 {[%clk 0:00:17.1]} 34. g4 {[%clk 0:00:03]} 34...
Nd4 {[%clk 0:00:15.5]} 35. Nxd4 {[%clk 0:00:03]} 35... Rxd4 {[%clk 0:00:14.7]}
36. c3 {[%clk 0:00:01.9]} 36... Rxf4 {[%clk 0:00:14.7]} 37. Rb8 {[%clk
0:00:01.5]} 37... Rf3 {[%clk 0:00:11.2]} 38. Rxb5 {[%clk 0:00:02]} 38... Rxh3
{[%clk 0:00:11.4]} 39. Rd5 {[%clk 0:00:02.3]} 39... Rg3 {[%clk 0:00:10.9]} 40.
Rd4 {[%clk 0:00:02.8]} 40... Kg5 {[%clk 0:00:09.2]} 41. b5 {[%clk 0:00:03.3]}
41... Re3 {[%clk 0:00:09.4]} 42. b6 {[%clk 0:00:03.5]} 42... Rxe5 {[%clk
0:00:09.5]} 43. b7 {[%clk 0:00:04.2]} 43... Re8 {[%clk 0:00:08.3]} 44. c4 {[%clk
0:00:03.2]} 44... Rb8 {[%clk 0:00:06.1]} 45. Rd7 {[%clk 0:00:03.5]} 45... Kxg4
{[%clk 0:00:06.3]} 46. c5 {[%clk 0:00:04.1]} 46... f5 {[%clk 0:00:05.8]} 47.
Rxh7 {[%clk 0:00:03.7]} 47... f4 {[%clk 0:00:05]} 48. c6 {[%clk 0:00:04.3]}
48... f3 {[%clk 0:00:05.4]} 49. Rg7+ {[%clk 0:00:04.5]} 49... Kh5 {[%clk
0:00:02.6]} 50. Kc3 {[%clk 0:00:04.4]} 50... f2 {[%clk 0:00:01.6]} 51. Rf7
{[%clk 0:00:05]} 51... Re8 {[%clk 0:00:01.4]} 52. Rxf2 {[%clk 0:00:05.1]} 1-0

[Event "Late-Titled-Tuesday-Blitz-September-12-2023"]
[Site "Chess.com"]
[Date "2023.09.12"]
[Round "2"]
[White "GothamChess"]
[Black "octopus_assassin"]
[Result "1-0"]
[WhiteElo "2729"]
[BlackElo "2369"]
[TimeControl "180+1"]
[EndTime "14:18:15 PDT"]
[Termination "GothamChess won by resignation"]

1. d4 {[%clk 0:03:00.9]} 1... Nf6 {[%clk 0:02:56.8]} 2. Bg5 {[%clk 0:03:00.4]}
2... d5 {[%clk 0:02:56.3]} 3. e3 {[%clk 0:02:59.9]} 3... c5 {[%clk 0:02:51.5]}
4. Nd2 {[%clk 0:02:59.7]} 4... Nc6 {[%clk 0:02:47.1]} 5. c3 {[%clk 0:02:59.6]}
5... e5 {[%clk 0:02:39]} 6. dxe5 {[%clk 0:02:58.7]} 6... Nxe5 {[%clk 0:02:38.8]}
7. Ndf3 {[%clk 0:02:56.2]} 7... Nxf3+ {[%clk 0:02:32.6]} 8. Nxf3 {[%clk
0:02:55.7]} 8... Be7 {[%clk 0:02:33.3]} 9. Bb5+ {[%clk 0:02:30.9]} 9... Bd7
{[%clk 0:02:32.9]} 10. Qa4 {[%clk 0:02:29.2]} 10... Bxb5 {[%clk 0:02:22.9]} 11.
Qxb5+ {[%clk 0:02:28.5]} 11... Qd7 {[%clk 0:02:23.5]} 12. Qxd7+ {[%clk
0:02:27.2]} 12... Kxd7 {[%clk 0:02:23.8]} 13. O-O-O {[%clk 0:02:24.3]} 13... Ke6
{[%clk 0:02:24]} 14. Bxf6 {[%clk 0:02:12]} 14... Bxf6 {[%clk 0:02:24]} 15. e4
{[%clk 0:01:52.8]} 15... dxe4 {[%clk 0:02:09.2]} 16. Rhe1 {[%clk 0:01:52.6]}
16... Rad8 {[%clk 0:01:58]} 17. Rxe4+ {[%clk 0:01:50.4]} 17... Kf5 {[%clk
0:01:58.4]} 18. Rde1 {[%clk 0:01:43]} 18... h5 {[%clk 0:01:44.1]} 19. h3 {[%clk
0:01:37.2]} 19... h4 {[%clk 0:01:39.1]} 20. Kc2 {[%clk 0:01:23.2]} 20... g5
{[%clk 0:01:36]} 21. R1e2 {[%clk 0:01:17.4]} 21... b5 {[%clk 0:01:32.5]} 22. a4
{[%clk 0:01:03.7]} 22... a6 {[%clk 0:01:30.7]} 23. Nh2 {[%clk 0:01:00]} 23...
Rd7 {[%clk 0:01:06.4]} 24. Ng4 {[%clk 0:00:54.3]} 24... Bg7 {[%clk 0:01:06.7]}
25. f3 {[%clk 0:00:38.8]} 25... Rhd8 {[%clk 0:01:05.3]} 26. Ne5 {[%clk
0:00:33.8]} 26... Rc7 {[%clk 0:00:49.2]} 27. axb5 {[%clk 0:00:31.3]} 27... axb5
{[%clk 0:00:49]} 28. Nd3 {[%clk 0:00:24.7]} 28... Bf6 {[%clk 0:00:45.4]} 29. Nf2
{[%clk 0:00:18.4]} 29... c4 {[%clk 0:00:43.3]} 30. Ng4 {[%clk 0:00:17.7]} 30...
Bg7 {[%clk 0:00:42.4]} 31. Ne3+ {[%clk 0:00:16.9]} 31... Kg6 {[%clk 0:00:41.7]}
32. f4 {[%clk 0:00:09]} 32... gxf4 {[%clk 0:00:28.7]} 33. Rxf4 {[%clk
0:00:08.1]} 33... Rh8 {[%clk 0:00:18.1]} 34. Rg4+ {[%clk 0:00:04.9]} 34... Kh7
{[%clk 0:00:13.8]} 35. Rxh4+ {[%clk 0:00:03.9]} 35... Kg8 {[%clk 0:00:14.4]} 36.
Rg4 {[%clk 0:00:03.8]} 36... Kf8 {[%clk 0:00:14.4]} 37. Nf5 {[%clk 0:00:04]}
37... Bf6 {[%clk 0:00:14.4]} 38. Rge4 {[%clk 0:00:04.4]} 38... Rc8 {[%clk
0:00:13.9]} 39. R2e3 {[%clk 0:00:04.4]} 39... Rh5 {[%clk 0:00:13.6]} 40. g4
{[%clk 0:00:04.6]} 40... Rg5 {[%clk 0:00:13.1]} 41. b3 {[%clk 0:00:04.6]} 41...
cxb3+ {[%clk 0:00:12]} 42. Kxb3 {[%clk 0:00:05.5]} 42... Kg8 {[%clk 0:00:09.3]}
43. Kb4 {[%clk 0:00:02.3]} 43... Rb8 {[%clk 0:00:09]} 44. Re8+ {[%clk 0:00:02]}
44... Rxe8 {[%clk 0:00:09.2]} 45. Rxe8+ {[%clk 0:00:02.9]} 45... Kh7 {[%clk
0:00:10.1]} 46. Rf8 {[%clk 0:00:03.1]} 46... Kg6 {[%clk 0:00:08.4]} 47. Rg8+
{[%clk 0:00:03.4]} 47... Kh7 {[%clk 0:00:08.1]} 48. Rxg5 {[%clk 0:00:03.1]}
48... Bxg5 {[%clk 0:00:09]} 49. Kxb5 {[%clk 0:00:03.6]} 49... Bf4 {[%clk
0:00:09]} 50. c4 {[%clk 0:00:04]} 50... Kg6 {[%clk 0:00:09.1]} 51. c5 {[%clk
0:00:04.6]} 51... Kg5 {[%clk 0:00:09]} 52. Kc6 {[%clk 0:00:03.3]} 52... Kf6
{[%clk 0:00:06.7]} 53. Kd7 {[%clk 0:00:03.2]} 53... Ke5 {[%clk 0:00:06.1]} 54.
c6 {[%clk 0:00:03.5]} 1-0

[Event "Late-Titled-Tuesday-Blitz-September-12-2023"]
[Site "Chess.com"]
[Date "2023.09.12"]
[Round "2"]
[White "FredyMatsuura"]
[Black "DefiantChair"]
[Result "1-0"]
[WhiteElo "2333"]
[BlackElo "2674"]
[TimeControl "180+1"]
[EndTime "14:18:15 PDT"]
[Termination "FredyMatsuura won by resignation"]

1. d4 {[%clk 0:03:00.9]} 1... Nf6 {[%clk 0:02:59.6]} 2. c4 {[%clk 0:02:59.7]}
2... e6 {[%clk 0:03:00]} 3. Nf3 {[%clk 0:02:59.3]} 3... d5 {[%clk 0:02:59.8]} 4.
Nc3 {[%clk 0:02:58.6]} 4... Bb4 {[%clk 0:02:59.4]} 5. e3 {[%clk 0:02:57.5]} 5...
O-O {[%clk 0:02:59]} 6. Bd3 {[%clk 0:02:57.3]} 6... dxc4 {[%clk 0:02:58.6]} 7.
Bxc4 {[%clk 0:02:57.7]} 7... c5 {[%clk 0:02:59.1]} 8. O-O {[%clk 0:02:57.7]}
8... Nc6 {[%clk 0:02:57.4]} 9. a3 {[%clk 0:02:45.8]} 9... Bxc3 {[%clk
0:02:57.2]} 10. bxc3 {[%clk 0:02:45.8]} 10... Qc7 {[%clk 0:02:51.6]} 11. Qe2
{[%clk 0:02:43.8]} 11... e5 {[%clk 0:02:48.5]} 12. h3 {[%clk 0:02:44.1]} 12...
h6 {[%clk 0:02:40.4]} 13. a4 {[%clk 0:02:42.1]} 13... Re8 {[%clk 0:02:36.7]} 14.
d5 {[%clk 0:02:25.4]} 14... Ne7 {[%clk 0:02:36.3]} 15. e4 {[%clk 0:02:18.7]}
15... Ng6 {[%clk 0:02:36]} 16. a5 {[%clk 0:01:55.9]} 16... Nh5 {[%clk
0:02:33.7]} 17. Qc2 {[%clk 0:01:45]} 17... Nhf4 {[%clk 0:02:33.2]} 18. Rd1
{[%clk 0:01:36.9]} 18... Qd6 {[%clk 0:02:31.8]} 19. a6 {[%clk 0:01:34.7]} 19...
b6 {[%clk 0:02:31.2]} 20. Bb5 {[%clk 0:01:32.1]} 20... Rd8 {[%clk 0:02:30.6]}
21. Be3 {[%clk 0:01:21.7]} 21... Qf6 {[%clk 0:02:24.8]} 22. Be2 {[%clk
0:00:31.5]} 22... Bd7 {[%clk 0:02:17.7]} 23. Kh1 {[%clk 0:00:20.9]} 23... Rac8
{[%clk 0:02:14.8]} 24. Nh2 {[%clk 0:00:20.4]} 24... Rf8 {[%clk 0:01:59.6]} 25.
Bg4 {[%clk 0:00:20.1]} 25... Qd8 {[%clk 0:01:58.2]} 26. Bxd7 {[%clk 0:00:19.4]}
26... Qxd7 {[%clk 0:01:59.1]} 27. Qd2 {[%clk 0:00:17.9]} 27... f5 {[%clk
0:01:57.8]} 28. exf5 {[%clk 0:00:17.3]} 28... Rxf5 {[%clk 0:01:57.5]} 29. c4
{[%clk 0:00:15.7]} 29... Rcf8 {[%clk 0:01:56.8]} 30. Ng4 {[%clk 0:00:15.3]}
30... e4 {[%clk 0:01:47.1]} 31. Bxf4 {[%clk 0:00:12.4]} 31... Nxf4 {[%clk
0:01:48]} 32. Qe3 {[%clk 0:00:12.4]} 32... h5 {[%clk 0:01:43.7]} 33. Nh2 {[%clk
0:00:11.2]} 33... Nd3 {[%clk 0:01:43.7]} 34. f3 {[%clk 0:00:08.7]} 34... Qd6
{[%clk 0:01:30.2]} 35. fxe4 {[%clk 0:00:07.1]} 35... Nf2+ {[%clk 0:01:30.2]} 36.
Kg1 {[%clk 0:00:07.6]} 36... Nxh3+ {[%clk 0:01:17.7]} 37. Qxh3 {[%clk
0:00:06.5]} 37... Rf2 {[%clk 0:01:15]} 38. Nf3 {[%clk 0:00:06.3]} 38... Rb2
{[%clk 0:01:13.7]} 39. e5 {[%clk 0:00:06.4]} 39... Qg6 {[%clk 0:01:13.4]} 40. e6
{[%clk 0:00:05.6]} 40... Rf4 {[%clk 0:01:13]} 41. e7 {[%clk 0:00:05.6]} 41...
Kh7 {[%clk 0:01:03.7]} 42. d6 {[%clk 0:00:05.2]} 42... Rg4 {[%clk 0:01:03.9]}
43. Rd2 {[%clk 0:00:05.7]} 43... Rb3 {[%clk 0:00:40.8]} 44. Re1 {[%clk
0:00:04.4]} 44... Rg3 {[%clk 0:00:36.3]} 45. Qxg3 {[%clk 0:00:02.1]} 45... Qxg3
{[%clk 0:00:35.9]} 46. e8=Q {[%clk 0:00:02.5]} 46... Qg4 {[%clk 0:00:32.7]} 47.
Qe4+ {[%clk 0:00:02.1]} 47... Qxe4 {[%clk 0:00:32.1]} 48. Rxe4 {[%clk 0:00:03]}
48... Rb1+ {[%clk 0:00:32]} 49. Kf2 {[%clk 0:00:03.6]} 49... g5 {[%clk
0:00:32.9]} 50. d7 {[%clk 0:00:03.9]} 50... g4 {[%clk 0:00:33.6]} 51. Ne5 {[%clk
0:00:04.4]} 51... g3+ {[%clk 0:00:34.5]} 52. Kxg3 {[%clk 0:00:04.7]} 52... Rb3+
{[%clk 0:00:34.6]} 53. Kf4 {[%clk 0:00:05.2]} 53... Rd3 {[%clk 0:00:35.5]} 54.
Re3 {[%clk 0:00:05.6]} 54... Rxd2 {[%clk 0:00:36.4]} 55. Rd3 {[%clk 0:00:05.8]}
55... Rf2+ {[%clk 0:00:36.3]} 56. Kg5 {[%clk 0:00:06.3]} 56... Rxg2+ {[%clk
0:00:35.8]} 57. Kxh5 {[%clk 0:00:06.8]} 57... Rh2+ {[%clk 0:00:34.1]} 58. Kg5
{[%clk 0:00:07.3]} 58... Rg2+ {[%clk 0:00:34]} 59. Ng4 {[%clk 0:00:07.7]} 59...
Rd2 {[%clk 0:00:33.1]} 60. Rxd2 {[%clk 0:00:07.3]} 1-0